bitfinex/quotes_ETHUSD_20220106
["timestamp","ask_amount","ask_price","bid_price","bid_amount"]
[1641470547540,0.10348995,3352.5,3352.4,0.00126169]
[1641470549043,0.84956995,3352.5,3352.4,0.00126169]
[1641470550683,1.27956995,3352.5,3352.4,0.00126169]
[1641470550883,2.00283775,3352.3,3352.1,0.3]
[1641470551079,2.74910775,3352.3,3352.0,0.00126169]
[1641470551281,2.74910775,3352.3,3352.2,0.00113684]
[1641470551879,3.74910775,3352.3,3352.2,0.00113684]
[1641470552882,3.74910775,3352.3,3352.0,0.00126169]
[1641470552883,21.62910775,3352.3,3352.0,0.00126169]
[1641470553080,1.0,3352.2,3352.0,0.00126169]
[1641470553281,0.43,3352.1,3351.8,0.19966169]
[1641470553485,0.74644,3352.0,3351.8,0.19966169]
[1641470553680,0.74644,3352.0,3350.6,0.6761207]
[1641470553681,23.23,3351.9,3350.6,1.4226007]
[1641470553885,0.895,3351.6,3350.6,1.4226007]
[1641470554085,17.45,3351.7,3351.1,0.00625266]
[1641470554086,12.945,3351.2,3351.1,0.00625266]
[1641470554339,30.825,3351.2,3350.6,0.6761207]
[1641470554533,0.895,3350.8,3350.6,0.6761207]
[1641470554840,1.325,3350.7,3350.6,0.6761207]
[1641470555040,1.325,3350.7,3350.5,5.275]
[1641470555041,0.43,3350.7,3350.5,5.275]
[1641470555334,0.43,3350.7,3349.6,6.94]
[1641470555535,1.92620267,3349.8,3349.6,6.94]
[1641470555735,3.10296267,3349.8,3349.7,0.00795793]
[1641470556332,1.17676,3349.8,3349.7,0.00927332]
[1641470556533,0.43,3349.8,3349.7,0.00927332]
[1641470556936,0.43,3350.2,3349.7,0.30927332]
[1641470557335,0.43,3350.2,3349.8,0.00738951]
[1641470558390,0.43,3350.2,3350.0,1.14415673]
[1641470558589,0.43,3350.2,3350.0,1.44415673]
[1641470558791,1.17658,3350.2,3350.1,0.00568424]
[1641470559690,1.17658,3350.2,3349.8,0.00738951]
[1641470560091,1.17658,3350.2,3349.8,0.00357088]
[1641470560291,1.17658,3350.2,3349.8,1.27544525]
[1641470560492,1.17658,3350.2,3349.8,1.57544525]
[1641470560690,0.43,3350.2,3349.9,0.00300245]
[1641470561493,0.43,3350.2,3349.8,0.00357088]
[1641470561736,0.74669,3349.9,3349.8,0.00357088]
[1641470562338,0.43,3350.2,3349.8,0.30357088]
[1641470562738,0.43,3350.2,3349.9,0.00300245]
[1641470563137,0.43,3350.2,3350.0,0.00243403]
[1641470563338,0.43,3350.2,3349.8,0.23093077]
[1641470563738,0.74773685,3350.1,3349.8,0.23093077]
[1641470565346,0.00113685,3350.1,3349.8,0.19643412]
[1641470565585,17.45,3350.9,3349.8,0.19643412]
[1641470565586,4.13632,3351.8,3350.1,11.45]
[1641470565778,5.82797825,3352.1,3350.8,1.04802002]
[1641470565779,0.43,3351.7,3350.8,1.04802002]
[1641470565979,2.11327876,3351.5,3350.8,1.04802002]
[1641470566178,2.54327876,3351.5,3350.4,2.5579042]
[1641470566586,3.28959876,3351.5,3350.4,4.0505942]
[1641470566981,3.28959876,3351.5,3350.5,0.0011892]
[1641470567180,1.94280791,3350.9,3350.5,0.0011892]
[1641470567379,0.43,3351.5,3350.5,0.3011892]
[1641470567580,0.00397896,3350.8,3350.5,0.3011892]
[1641470567780,0.43,3351.5,3350.5,0.3011892]
[1641470567781,0.0073895,3351.4,3350.5,0.3011892]
[1641470568079,0.43,3351.5,3350.5,0.3011892]
[1641470568080,0.74642,3350.9,3350.5,0.3011892]
[1641470568482,0.00397896,3350.8,3350.5,0.3011892]
[1641470568881,0.00341053,3350.7,3350.5,0.3011892]
[1641470569337,0.00284211,3350.6,3350.5,0.3011892]
[1641470570142,0.00284211,3350.6,3350.5,0.0011892]
[1641470571137,1.49598211,3350.6,3350.5,0.0011892]
[1641470571339,1.49598211,3350.6,3349.9,0.00113685]
[1641470571340,12.945,3350.5,3350.1,0.74663]
[1641470571537,12.945,3350.5,3349.9,1.49436685]
[1641470571538,18.345,3350.3,3349.9,0.00113685]
[1641470571739,0.895,3350.1,3349.9,0.00113685]
[1641470571935,1.325,3350.0,3349.5,0.00341055]
[1641470572237,0.895,3349.7,3349.5,0.01567291]
[1641470572635,0.895,3349.7,3349.6,0.00284212]
[1641470573086,3.16868884,3349.7,3349.6,0.00284212]
[1641470573289,3.91538884,3349.7,3349.6,0.00284212]
[1641470573487,3.91538884,3349.7,3349.4,0.00397897]
[1641470573685,1.6417,3349.7,3349.4,0.00397897]
[1641470573888,1.6417,3349.7,3349.5,1.12889451]
[1641470573889,0.895,3349.7,3349.5,1.12889451]
[1641470574389,0.895,3349.7,3349.6,0.00284212]
[1641470574787,0.895,3349.7,3349.3,0.74663]
[1641470574788,0.895,3349.7,3349.4,0.00397897]
[1641470575287,0.895,3349.5,3349.4,0.00397897]
[1641470575487,0.895,3349.5,3349.4,1.10098147]
[1641470576087,0.895,3349.5,3349.4,5.45098147]
[1641470576738,0.43,3350.0,3349.5,3.95]
[1641470576935,0.895,3349.9,3349.4,0.00397897]
[1641470577132,0.895,3349.7,3349.6,0.00284212]
[1641470577332,0.895,3349.7,3349.3,1.04663]
[1641470577333,1.325,3349.7,3349.4,2.49946448]
[1641470577733,1.325,3349.7,3349.5,0.00341055]
[1641470577932,1.325,3349.7,3349.5,0.00468276]
[1641470578135,2.07172,3349.7,3349.5,0.00468276]
[1641470578333,2.07172,3349.7,3349.6,0.00284212]
[1641470581092,2.07172,3349.7,3349.5,0.0002957]
[1641470584091,2.07172,3349.7,3348.9,0.05282577]
[1641470584092,0.895,3349.5,3348.9,0.79974577]
[1641470584338,2.17672,3349.7,3348.9,0.05282577]
[1641470584339,5.445,3349.0,3348.9,0.05282577]
[1641470584535,5.445,3349.0,3348.8,1.49373]
[1641470584536,1.325,3349.0,3348.8,1.47448409]
[1641470584742,0.895,3348.8,3348.6,0.6761207]
[1641470584943,11.675,3348.7,3348.6,0.6761207]
[1641470585142,0.895,3348.5,3348.1,1.11245235]
[1641470585337,0.895,3348.3,3348.1,1.11245235]
[1641470585538,1.325,3348.2,3348.1,1.11245235]
[1641470585743,3.0542048,3348.2,3347.8,1.49425]
[1641470585938,3.0542048,3348.2,3348.1,0.00852636]
[1641470586237,0.895,3348.0,3347.6,1.08875575]
[1641470586439,3.1592048,3348.2,3347.6,1.08875575]
[1641470586440,0.895,3347.7,3347.6,1.08875575]
[1641470586638,2.0723,3347.7,3347.6,1.08875575]
[1641470586840,2.0723,3347.7,3347.6,1.38875575]
[1641470587038,2.0723,3347.7,3347.4,7.6532698]
[1641470587242,2.325,3347.7,3347.4,7.6532698]
[1641470587437,2.325,3347.7,3347.5,0.00113685]
[1641470587638,1.325,3347.7,3347.5,0.00113685]
[1641470588100,1.64233,3347.6,3347.5,0.00113685]
[1641470588403,2.07233,3347.6,3347.5,0.00113685]
[1641470589200,1.325,3347.6,3347.5,0.00113685]
[1641470590002,1.325,3347.6,3347.5,7.65113685]
[1641470590302,0.43,3348.0,3347.5,7.95113685]
[1641470590503,0.73896259,3347.6,3347.5,2.65094359]
[1641470590903,0.00113685,3347.9,3347.5,2.65094359]
[1641470591103,0.00113685,3347.9,3347.8,1.68895571]
[1641470592348,0.43113685,3347.9,3347.8,4.03876245]
[1641470593245,0.43113685,3347.9,3347.8,2.64980674]
[1641470593646,0.43113685,3347.9,3347.8,0.3]
[1641470593945,0.43113685,3347.9,3347.6,1.04707]
[1641470594145,0.43113685,3347.9,3347.6,2.43419018]
[1641470594345,1.17822685,3347.9,3347.6,2.43419018]
[1641470595357,1.17822685,3347.9,3347.7,2.03049758]
[1641470596295,0.43113685,3347.9,3347.7,2.03049758]
[1641470596500,0.00113685,3347.9,3347.7,2.03049758]
[1641470596696,0.43,3348.3,3347.8,12.05]
[1641470596894,0.053182,3349.2,3347.8,12.05]
[1641470596895,0.43,3348.8,3347.8,12.06288063]
[1641470597095,0.053182,3349.2,3348.2,0.01235685]
[1641470597096,0.483182,3349.2,3348.2,0.01235685]
[1641470597298,1.10831412,3349.7,3348.2,0.01235685]
[1641470597299,1.53831412,3349.7,3349.1,1.20515186]
[1641470597601,0.43,3349.7,3348.2,5.01835685]
[1641470597795,0.43,3349.7,3348.5,0.3]
[1641470597994,0.43,3349.7,3349.2,0.01160233]
[1641470598195,0.74684,3349.4,3349.2,0.01160233]
[1641470598396,0.43,3349.3,3349.2,0.01160233]
[1641470598598,0.43795793,3349.3,3349.2,0.01160233]
[1641470599242,1.93166793,3349.3,3349.2,0.01160233]
[1641470601343,2.41370584,3349.3,3349.2,0.01160233]
[1641470602146,2.41370584,3349.3,3349.2,0.0077837]
[1641470602748,10.7,3349.2,3349.0,0.3]
[1641470603025,10.7,3349.2,3348.4,1.49394]
[1641470603026,17.88,3349.1,3348.4,1.49394]
[1641470603218,0.74706,3348.8,3348.4,1.79394]
[1641470603419,0.43,3348.7,3348.4,1.49394]
[1641470603618,2.95067996,3348.6,3347.7,1.12542367]
[1641470603823,5.371,3348.2,3347.7,1.12542367]
[1641470604119,17.88,3348.5,3347.5,0.00113685]
[1641470604120,17.45,3347.7,3347.5,0.00113685]
[1641470604319,1.17733,3347.6,3347.5,0.00113685]
[1641470604519,1.17733,3347.6,3347.2,0.00397897]
[1641470605022,2.17733,3347.6,3347.2,0.00397897]
[1641470605421,2.06782323,3347.5,3346.9,1.42649729]
[1641470605619,0.74736,3347.1,3346.9,1.42649729]
[1641470605820,0.74736,3347.1,3347.0,0.00113684]
[1641470606119,1.17736,3347.1,3347.0,0.30113684]
[1641470607342,1.17736,3347.1,3347.0,0.26664019]
[1641470608742,7.32736,3347.1,3347.0,0.00113684]
[1641470608943,7.32736,3347.1,3346.6,0.6761207]
[1641470608944,17.45,3346.9,3346.6,0.6761207]
[1641470609142,2.17755,3346.8,3346.6,0.6761207]
[1641470609342,22.821,3346.7,3346.6,0.6761207]
[1641470609544,11.3,3346.6,3346.3,0.0531838]
[1641470609744,8.171,3346.4,3346.3,0.0531838]
[1641470609943,5.801,3346.4,3346.3,0.0531838]
[1641470610145,6.5,3346.3,3345.3,2.48346788]
[1641470610344,0.74763,3345.4,3345.1,1.49526]
[1641470610589,1.17763,3345.4,3345.1,1.49526]
[1641470610789,1.17763,3345.4,3345.3,0.74763]
[1641470611087,3.43056425,3345.4,3345.3,0.74763]
[1641470611684,1.17763,3345.4,3345.3,0.74763]
[1641470612286,1.17763,3345.4,3345.3,1.04763]
[1641470612488,0.43,3345.4,3345.3,1.04763]
[1641470613489,0.43,3345.4,3345.3,15.49523004]
[1641470613688,0.43,3345.9,3345.8,6.04501659]
[1641470613889,0.43,3345.9,3345.8,1.09501659]
[1641470614088,0.43,3345.9,3345.8,1.0978587]
[1641470614339,0.43,3345.9,3345.8,1.3978587]
[1641470614536,0.43,3345.9,3345.8,0.30284211]
[1641470615137,0.43,3345.9,3345.8,0.00284211]
[1641470615537,0.43,3345.9,3345.7,0.00341054]
[1641470615841,0.74756,3345.8,3345.7,0.00341054]
[1641470623342,0.74756,3345.8,3345.6,0.29959191]
[1641470624349,2.71809934,3345.8,3345.6,0.29959191]
[1641470624750,0.43,3345.7,3345.6,0.29959191]
[1641470626489,0.43,3345.7,3345.6,0.22752023]
[1641470627386,0.43,3345.7,3344.9,0.05318684]
[1641470627587,0.7478,3345.2,3344.9,0.05318684]
[1641470627793,0.43,3345.1,3345.0,0.00397896]
[1641470628387,0.43,3345.1,3344.9,0.02266915]
[1641470628388,19.81827868,3345.1,3344.9,0.02266915]
[1641470628987,19.81827868,3345.1,3344.5,0.6761207]
[1641470629254,0.74795,3344.6,3344.5,0.6761207]
[1641470629446,1.17795,3344.6,3344.5,0.6761207]
[1641470629645,1.17795,3344.6,3344.5,0.67896282]
[1641470631048,0.43,3344.6,3344.5,0.67896282]
[1641470631350,0.43,3344.6,3344.5,0.68070774]
[1641470632994,1.17785,3344.6,3344.5,0.68070774]
[1641470638040,1.147961,3344.6,3344.5,0.68070774]
[1641470639241,1.447361,3344.6,3344.5,0.68070774]
[1641470639642,0.699511,3344.6,3344.5,0.68070774]
[1641470640342,0.2994,3344.6,3344.5,6.33070774]
[1641470640589,0.2994,3344.6,3344.5,7.34313321]
[1641470640590,0.0001,3344.6,3344.5,7.34313321]
[1641470640791,0.43,3345.2,3345.0,1.37290782]
[1641470640991,0.43,3345.2,3345.0,1.67290782]
[1641470642191,0.43,3345.2,3345.1,0.00166301]
[1641470642491,0.43113685,3345.2,3345.1,0.00166301]
[1641470644333,0.43113685,3345.2,3345.0,0.29784438]
[1641470644532,0.43113685,3345.2,3344.9,0.74762]
[1641470644736,0.7477,3345.1,3344.9,0.74762]
[1641470646340,0.7477,3345.1,3344.9,1.04762]
[1641470647641,0.7477,3345.1,3344.9,0.97554832]
[1641470648483,0.43113685,3345.2,3344.9,1.72323712]
[1641470648885,0.43113685,3345.2,3344.9,1.67323712]
[1641470649483,0.43113685,3345.2,3344.9,3.13393627]
[1641470649884,0.43113685,3345.2,3345.0,1.56625975]
[1641470652036,0.7477,3345.1,3345.0,1.56625975]
[1641470654037,1.1777,3345.1,3345.0,1.56625975]
[1641470654438,1.1777,3345.1,3344.7,1.49523]
[1641470654636,2.11440576,3345.1,3344.7,1.49523]
[1641470654836,0.74784,3344.9,3344.8,0.00113685]
[1641470655038,1.17784,3344.9,3344.8,0.00113685]
[1641470655237,5.47784,3344.9,3344.8,0.00113685]
[1641470655488,5.47784,3344.9,3344.6,0.0022737]
[1641470655688,4.73,3344.9,3344.6,0.0022737]
[1641470655890,5.66670576,3344.9,3344.6,0.0022737]
[1641470656090,1.36670576,3344.9,3344.6,0.0022737]
[1641470656493,17.45,3344.8,3344.6,0.0022737]
[1641470656693,1.17795,3344.7,3344.6,0.0022737]
[1641470657094,18.62795,3344.7,3344.6,0.0022737]
[1641470657293,18.62795,3344.7,3344.6,1.57414678]
[1641470657694,20.35976402,3344.7,3344.6,1.57414678]
[1641470658295,20.35976402,3344.7,3344.6,0.0022737]
[1641470658493,21.29646978,3344.7,3344.6,0.0022737]
[1641470664989,3.84646978,3344.7,3344.6,0.0022737]
[1641470665197,0.67580576,3344.7,3344.6,6.13283543]
[1641470665389,0.62580576,3344.7,3344.6,3.96056362]
[1641470665588,0.62580576,3344.7,3344.6,4.96056362]
[1641470665988,0.00113685,3345.2,3344.7,12.05]
[1641470666190,0.00113685,3345.2,3344.6,2.05970575]
[1641470666388,0.00284212,3345.1,3344.6,0.31210855]
[1641470666589,0.00284212,3345.1,3344.6,1.31210855]
[1641470666848,0.0022737,3345.0,3344.6,0.74759]
[1641470667045,0.0022737,3345.0,3344.7,0.3]
[1641470667249,0.00170527,3344.9,3344.7,1.0477139]
[1641470667448,0.00170527,3344.9,3344.7,0.75981211]
[1641470667745,0.00113685,3344.8,3344.7,1.05981211]
[1641470668752,0.00113685,3344.8,3344.7,0.98774043]
[1641470668945,0.00113685,3344.8,3344.7,3.50642149]
[1641470669147,0.00113685,3344.8,3344.7,15.45642149]
[1641470669545,1.09741233,3345.5,3344.9,2.2424675]
[1641470669747,1.09741233,3345.5,3344.9,1.4950692]
[1641470669952,0.00341054,3345.4,3344.9,1.4950692]
[1641470670250,0.00284212,3345.3,3345.0,0.3]
[1641470670506,0.00284212,3345.3,3345.0,0.26550335]
[1641470670714,0.00227369,3345.2,3345.0,1.01306315]
[1641470671125,0.00170527,3345.1,3345.0,1.01306315]
[1641470671311,0.00170527,3345.1,3345.0,0.26550335]
[1641470671509,0.00170527,3345.1,3345.0,3.11550335]
[1641470673510,0.00170527,3345.1,3345.0,5.48566903]
[1641470673711,0.00170527,3345.1,3345.0,3.11550335]
[1641470674111,0.00170527,3345.1,3345.0,7.36550335]
[1641470674347,0.00170527,3345.1,3345.0,3.11550335]
[1641470674745,0.00170527,3345.1,3345.0,5.46063144]
[1641470675148,0.00170527,3345.1,3345.0,3.11550335]
[1641470676748,0.00170527,3345.1,3345.0,5.46576437]
[1641470676954,1.09741233,3345.7,3345.1,5.65]
[1641470677150,1.09741233,3345.7,3345.0,2.61906659]
[1641470677350,0.00227369,3345.5,3345.0,2.61906659]
[1641470677652,0.00170527,3345.4,3345.0,0.26550335]
[1641470678100,7.69123962,3347.1,3345.5,12.05]
[1641470678101,1.83931057,3346.5,3345.5,12.05]
[1641470678297,2.2429,3348.2,3345.2,2.23045694]
[1641470678298,2.72948689,3347.0,3346.5,1.37924255]
[1641470678498,0.46983903,3347.1,3346.9,0.01269096]
[1641470678789,0.01193689,3347.4,3346.9,0.01269096]
[1641470679289,1.77302953,3347.3,3347.0,0.3]
[1641470679490,1.77302953,3347.3,3347.0,0.00170527]
[1641470679693,12.05,3347.2,3346.8,0.66186254]
[1641470679891,12.05,3347.2,3345.8,2.48688428]
[1641470680093,1.77302953,3347.3,3346.9,0.00113685]
[1641470680094,17.45,3347.1,3346.9,0.00113685]
[1641470680294,17.88,3347.1,3346.9,0.00113685]
[1641470680497,25.1,3347.0,3346.1,1.49498]
[1641470680693,1.89762845,3346.2,3346.1,1.49498]
[1641470681948,1.89762845,3346.2,3346.1,2.2424692]
[1641470682146,1.89762845,3346.2,3346.1,2.5424692]
[1641470683147,1.89762845,3346.2,3346.1,1.79498]
[1641470683350,1.89762845,3346.2,3345.5,1.4952]
[1641470683351,2.87762845,3346.2,3345.5,1.4952]
[1641470683549,0.55,3345.8,3344.9,0.13819997]
[1641470683747,0.55,3345.8,3344.4,1.2387]
[1641470683748,12.13,3345.7,3345.6,0.00852635]
[1641470684148,2.23610891,3344.7,3344.6,0.01421059]
[1641470684749,2.87680891,3344.7,3344.6,0.01421059]
[1641470686207,3.10913297,3344.7,3344.6,2.30073693]
[1641470686408,3.10913297,3344.7,3344.6,2.2969183]
[1641470686610,3.10913297,3344.7,3344.6,2.5969183]
[1641470687013,3.10913297,3344.7,3344.6,0.31039196]
[1641470687209,3.10913297,3344.7,3344.6,0.01039196]
[1641470688910,2.46843297,3344.7,3344.6,0.01039196]
[1641470689760,1.29795,3344.6,3344.5,0.61444098]
[1641470689960,0.55,3344.6,3344.5,0.61444098]
[1641470690763,0.55,3344.6,3344.5,3.81444098]
[1641470691163,0.78232406,3344.6,3344.5,4.11444098]
[1641470691361,0.78232406,3344.6,3344.5,0.91444098]
[1641470691564,0.55,3345.0,3344.5,0.87994433]
[1641470691762,0.55,3345.0,3344.5,3.1704055]
[1641470691960,0.55,3344.7,3344.5,3.1704055]
[1641470692561,0.55,3344.7,3344.5,0.87994433]
[1641470693192,5.55,3344.7,3344.5,0.87994433]
[1641470693796,5.55,3344.7,3344.5,0.61444098]
[1641470694394,5.55,3344.7,3344.6,2.2902946]
[1641470694994,5.55,3344.7,3344.6,2.5902946]
[1641470696495,5.55,3344.7,3344.6,0.3]
[1641470696767,5.77660914,3344.7,3344.5,0.61444098]
[1641470697172,5.77660914,3344.7,3344.5,0.91444098]
[1641470697365,0.77660914,3344.6,3344.5,0.91444098]
[1641470697969,0.77660914,3344.6,3344.5,3.20532908]
[1641470698569,0.77660914,3344.6,3344.5,0.91444098]
[1641470699967,0.55,3344.6,3344.5,0.91444098]
[1641470700268,0.55,3344.6,3344.5,3.20541948]
[1641470700895,0.55,3344.6,3344.5,3.20685009]
[1641470702294,0.55,3344.6,3344.5,4.38111719]
[1641470702498,0.55,3344.6,3344.5,7.2004857]
[1641470702695,5.0,3344.7,3344.6,12.05]
[1641470702897,1.11534763,3345.5,3344.7,12.05]
[1641470703093,1.11534763,3345.5,3344.8,2.00462537]
[1641470703295,0.00170527,3345.4,3344.8,2.7199486]
[1641470703494,1.11534763,3345.9,3344.9,12.05113685]
[1641470703695,1.11534763,3345.9,3345.0,1.74744]
[1641470703897,0.0022737,3345.8,3345.1,0.7474436]
[1641470704094,0.0022737,3345.8,3345.3,0.74745]
[1641470704355,0.00170527,3345.7,3345.4,0.3]
[1641470704754,0.00113685,3345.6,3345.4,0.3]
[1641470706460,2.0527894,3345.6,3345.4,0.3]
[1641470707257,0.00113685,3345.6,3345.4,0.3]
[1641470707457,0.00113685,3345.6,3345.4,0.29618137]
[1641470708099,0.00113685,3345.6,3345.5,0.00128912]
[1641470709003,3.13008071,3345.6,3345.5,0.00128912]
[1641470710401,3.32506983,3345.6,3345.5,0.00128912]
[1641470710802,3.32506983,3345.6,3345.4,0.22539881]
[1641470710803,2.2097222,3345.6,3345.4,0.22539881]
[1641470711508,1.31033675,3345.5,3345.4,0.22539881]
[1641470711750,1.31033675,3345.5,3345.3,0.74745]
[1641470712151,0.94269912,3345.5,3345.3,0.74745]
[1641470712551,0.94269912,3345.5,3345.3,0.71295335]
[1641470712750,0.43,3345.4,3345.2,0.00113685]
[1641470712953,14.79336572,3345.3,3345.2,0.00113685]
[1641470713151,12.48,3345.3,3345.2,0.00113685]
[1641470713351,6.54792,3344.7,3344.6,0.00454739]
[1641470713551,3.94792,3344.7,3344.6,0.00454739]
[1641470713753,2.46787826,3344.7,3344.6,0.00454739]
[1641470714155,2.46787826,3344.7,3343.8,1.1708]
[1641470714156,7.58377107,3343.6,3343.4,2.70048296]
[1641470714353,7.58377107,3343.6,3343.0,3.92246382]
[1641470714354,6.545,3343.2,3343.0,3.92246382]
[1641470714553,6.545,3343.2,3343.0,0.93104382]
[1641470714554,10.695,3343.1,3343.0,0.93104382]
[1641470714753,12.945,3342.9,3342.5,0.6761207]
[1641470715160,16.24813602,3342.9,3342.5,0.6761207]
[1641470715358,12.945,3342.7,3342.5,0.6761207]
[1641470715631,30.825,3342.7,3342.5,0.6761207]
[1641470715819,31.1435,3342.6,3342.5,0.6761207]
[1641470716019,25.8735,3342.6,3342.5,0.6761207]
[1641470716219,26.8735,3342.6,3342.5,0.6761207]
[1641470716420,20.5235,3342.6,3342.5,0.6761207]
[1641470716623,25.8945,3342.6,3342.5,0.6761207]
[1641470717024,24.8945,3342.6,3342.5,0.6761207]
[1641470717419,24.8945,3342.6,3341.5,7.66684]
[1641470717420,0.895,3341.6,3341.5,6.17]
[1641470717622,1.325,3341.6,3341.5,6.17]
[1641470717822,1.325,3341.6,3341.5,6.17625265]
[1641470718021,1.325,3341.6,3341.5,6.47625265]
[1641470718422,1.325,3341.6,3341.5,7.47625265]
[1641470718823,5.371,3342.1,3341.6,5.8]
[1641470719023,5.371,3342.1,3341.9,0.7482669]
[1641470719024,0.43,3342.0,3341.9,0.7482669]
[1641470719250,0.43,3342.0,3341.7,1.74827]
[1641470719251,0.43,3342.0,3341.7,1.75338581]
[1641470719459,0.43,3342.0,3341.9,0.00397896]
[1641470719651,0.43,3342.0,3341.8,0.30454738]
[1641470719854,0.43,3342.0,3341.9,0.97977816]
[1641470720652,0.43,3342.0,3341.9,0.00397896]
[1641470727646,0.43,3342.0,3341.6,0.00568423]
[1641470728047,1.49707,3341.9,3341.6,0.00568423]
[1641470728248,0.43,3341.8,3341.3,0.0073895]
[1641470728447,0.43,3341.8,3341.5,0.74467137]
[1641470728647,0.43,3341.8,3341.5,1.04467137]
[1641470728948,1.79055368,3341.6,3341.5,0.3]
[1641470729149,2.22055368,3341.6,3341.3,0.3]
[1641470729448,2.22055368,3341.6,3341.5,0.00625265]
[1641470730154,2.22055368,3341.6,3340.9,0.00966319]
[1641470730348,0.43,3341.6,3340.9,0.00966319]
[1641470730795,0.43,3341.6,3341.1,1.17774446]
[1641470730998,0.43,3341.6,3341.2,0.3]
[1641470731198,0.43,3341.6,3341.2,0.30795792]
[1641470731400,0.43,3341.6,3341.3,0.0073895]
[1641470731803,0.43,3341.6,3341.2,0.23531782]
[1641470731996,0.00113685,3341.5,3341.2,0.98374782]
[1641470733199,0.43113685,3341.5,3341.2,0.98374782]
[1641470733599,0.43113685,3341.5,3341.2,0.94925117]
[1641470738098,0.43113685,3341.5,3341.2,1.69767367]
[1641470739000,0.43113685,3341.5,3341.2,2.69767367]
[1641470740002,0.43113685,3341.5,3341.3,0.00162144]
[1641470741006,0.43113685,3341.5,3341.4,1.3079966]
[1641470742062,0.43113685,3341.5,3341.3,0.30162144]
[1641470742460,0.43113685,3341.5,3341.3,0.00162144]
[1641470743667,17.45,3341.4,3341.3,0.00162144]
[1641470743866,17.88,3341.4,3341.3,0.00162144]
[1641470744065,24.251,3341.4,3341.3,2.144e-05]
[1641470744263,12.05,3341.3,3340.5,0.6761207]
[1641470744467,0.43,3341.2,3340.5,0.6761207]
[1641470744665,0.43,3341.2,3340.6,0.00397896]
[1641470744866,7.24755,3340.7,3340.6,0.00397896]
[1641470745069,0.43,3340.7,3340.6,0.00397896]
[1641470747403,0.43,3340.7,3340.6,3.29126679]
[1641470747604,2.2287879,3341.1,3340.6,3.59126679]
[1641470747804,4.2514452,3340.7,3340.6,3.59126679]
[1641470748010,4.2514452,3340.7,3340.5,0.6761207]
[1641470748904,4.2514452,3340.7,3340.5,1.4246755]
[1641470749347,4.2514452,3340.7,3340.6,0.3]
[1641470749647,4.2514452,3340.7,3340.6,0.29618137]
[1641470750047,4.2514452,3340.7,3340.6,2.56837538]
[1641470750452,4.2514452,3340.7,3340.6,3.56837538]
[1641470750651,4.2514452,3340.7,3340.6,0.29754933]
[1641470750849,4.2514452,3340.7,3340.3,1.03566776]
[1641470750850,2.81451134,3340.5,3340.3,1.03566776]
[1641470751053,4.2514452,3340.7,3340.4,3.2900382]
[1641470751054,4.03565654,3340.7,3340.4,3.2900382]
[1641470751250,4.03565654,3340.7,3340.4,3.6663414]
[1641470751449,2.93005654,3340.7,3340.6,12.06234317]
[1641470751650,2.83005654,3340.7,3340.6,12.06234317]
[1641470751847,0.74824,3340.9,3340.7,12.05]
[1641470752049,0.74824,3340.9,3340.8,2.60453982]
[1641470752251,0.74824,3340.9,3340.8,2.60738194]
[1641470753599,0.26704,3341.2,3340.9,1.16128005]
[1641470753799,0.26704,3341.2,3341.0,2.78322182]
[1641470753999,0.26704,3341.2,3341.1,2.43878824]
[1641470754203,0.05390398,3342.1,3341.1,2.43992509]
[1641470754204,0.74824,3341.3,3341.1,2.43992509]
[1641470754401,0.05390398,3342.1,3341.1,2.43992509]
[1641470754601,0.05390398,3342.1,3341.1,3.39264074]
[1641470755202,4.10829267,3342.9,3341.1,3.39264074]
[1641470755402,1.49621,3342.0,3341.3,0.748067]
[1641470755602,1.49621,3342.0,3341.4,14.52231694]
[1641470755906,1.49621,3342.0,3341.4,14.82231694]
[1641470756101,1.99398631,3342.6,3341.4,14.82231694]
[1641470756301,0.74802,3342.0,3341.5,12.0511]
[1641470756502,0.74802,3342.0,3341.9,1.30762497]
[1641470756758,0.74802,3342.0,3341.9,2.48577341]
[1641470756953,0.74802,3342.0,3341.9,2.78577341]
[1641470758154,0.74802,3342.0,3341.9,3.77298571]
[1641470758355,0.74802,3342.0,3341.9,1.2872123]
[1641470759155,0.74802,3342.0,3341.9,0.9872123]
[1641470760159,2.8929893,3342.0,3341.9,0.9872123]
[1641470761004,2.8929893,3342.0,3341.9,0.98823419]
[1641470761402,2.8929893,3342.0,3341.9,0.00102189]
[1641470761403,4.37502622,3342.0,3341.9,0.00102189]
[1641470762099,4.37502622,3342.0,3341.2,1.55035465]
[1641470762303,0.74832,3341.4,3341.2,1.55035465]
[1641470762501,0.74832,3341.4,3341.3,0.00113685]
[1641470763201,0.74832,3341.4,3340.9,1.12621857]
[1641470763705,2.1917397,3341.3,3341.0,0.00170527]
[1641470763903,2.9401997,3341.3,3340.9,1.12621857]
[1641470764104,0.00113685,3341.2,3340.9,1.12621857]
[1641470764353,1.49829685,3341.2,3340.4,1.50479954]
[1641470764749,1.49829685,3341.2,3340.5,0.00284212]
[1641470764949,1.49829685,3341.2,3340.4,1.50479954]
[1641470765154,0.74862,3340.8,3340.4,1.50479954]
[1641470765350,2.24449916,3340.7,3340.4,1.50479954]
[1641470765656,2.24563601,3340.7,3340.4,1.50479954]
[1641470765851,2.24563601,3340.7,3340.4,0.3]
[1641470766061,2.24582,3340.6,3340.3,1.34620271]
[1641470766451,2.24582,3340.6,3340.3,1.04620271]
[1641470766652,0.74864,3340.5,3340.3,1.04620271]
[1641470766854,0.74864,3340.5,3340.4,1.04620271]
[1641470767355,0.76136206,3340.5,3340.0,0.7]
[1641470767554,17.88,3340.4,3340.0,0.7]
[1641470767755,18.62891,3340.4,3340.1,0.00227369]
[1641470768007,0.7488924,3340.2,3339.6,1.51427902]
[1641470768209,2.17478167,3339.7,3339.6,1.51427902]
[1641470768410,2.17478167,3339.7,3339.4,1.9154439]
[1641470768813,2.17478167,3339.7,3339.5,0.00341054]
[1641470769610,2.17478167,3339.7,3338.8,1.00738951]
[1641470769810,2.92367167,3339.7,3338.8,1.00738951]
[1641470770013,2.92367167,3339.7,3338.9,0.00682108]
[1641470770211,0.74889,3339.7,3338.9,0.00682108]
[1641470770611,0.74889,3339.7,3338.9,0.00300245]